[Event "*** SCC Grand Prix: Titled Tuesday Blitz"]
[Site "Chess.com"]
[Date "2020.09.08"]
[Round "9"]
[White "Zhani-Z"]
[Black "olksuna"]
[Result "0-1"]
[WhiteElo "2511"]
[BlackElo "2672"]
[TimeControl "180+1"]
[EndTime "11:46:29 PDT"]
[Termination "olksuna won on time"]

1. e4 {[%clk 0:03:00.9]} 1... d6 {[%clk 0:02:59.8]} 2. d4 {[%clk 0:03:00]} 2...
Nf6 {[%clk 0:03:00.4]} 3. Nc3 {[%clk 0:03:00.3]} 3... c6 {[%clk 0:02:59.9]} 4.
f4 {[%clk 0:02:49.6]} 4... Qa5 {[%clk 0:02:59.1]} 5. e5 {[%clk 0:02:47.4]} 5...
Ne4 {[%clk 0:02:58.3]} 6. Bd3 {[%clk 0:02:47.7]} 6... Nxc3 {[%clk 0:02:53.3]} 7.
Qd2 {[%clk 0:02:48.1]} 7... g6 {[%clk 0:02:42.5]} 8. bxc3 {[%clk 0:02:39.9]}
8... Bg7 {[%clk 0:02:42.4]} 9. Nf3 {[%clk 0:02:40]} 9... O-O {[%clk 0:02:42.7]}
10. O-O {[%clk 0:02:40.5]} 10... Nd7 {[%clk 0:02:36.6]} 11. Qf2 {[%clk
0:02:31.5]} 11... Qxc3 {[%clk 0:02:10.4]} 12. Bd2 {[%clk 0:02:30.2]} 12... Qa3
{[%clk 0:02:10.1]} 13. Qh4 {[%clk 0:02:28.1]} 13... c5 {[%clk 0:02:03.9]} 14. f5
{[%clk 0:02:04.7]} 14... dxe5 {[%clk 0:01:53.4]} 15. fxg6 {[%clk 0:01:53.4]}
15... fxg6 {[%clk 0:01:38.5]} 16. Bc4+ {[%clk 0:01:07.7]} 16... Kh8 {[%clk
0:01:13.7]} 17. Ng5 {[%clk 0:01:02.6]} 17... h5 {[%clk 0:01:07.3]} 18. Nf7+
{[%clk 0:00:33.6]} 18... Rxf7 {[%clk 0:00:50.5]} 19. Rxf7 {[%clk 0:00:30.2]}
19... Nf6 {[%clk 0:00:44.1]} 20. dxe5 {[%clk 0:00:17]} 20... Qb2 {[%clk
0:00:43.9]} 21. Re1 {[%clk 0:00:16.2]} 21... Ng4 {[%clk 0:00:41.7]} 22. Qxe7
{[%clk 0:00:10.6]} 22... Qd4+ {[%clk 0:00:26.5]} 23. Be3 {[%clk 0:00:10.3]}
23... Nxe3 {[%clk 0:00:24.9]} 24. Rf8+ {[%clk 0:00:03.3]} 24... Kh7 {[%clk
0:00:22.3]} 25. Bg8+ {[%clk 0:00:02.5]} 25... Kh6 {[%clk 0:00:20.8]} 0-1

[Event "*** SCC Grand Prix: Titled Tuesday Blitz"]
[Site "Chess.com"]
[Date "2020.09.08"]
[Round "9"]
[White "QuintilianoR"]
[Black "JoliyRoger"]
[Result "0-1"]
[WhiteElo "2605"]
[BlackElo "2439"]
[TimeControl "180+1"]
[EndTime "11:46:29 PDT"]
[Termination "JoliyRoger won by resignation"]

1. Nf3 {[%clk 0:03:00.9]} 1... Nf6 {[%clk 0:02:59.4]} 2. c4 {[%clk 0:03:00.6]}
2... e6 {[%clk 0:02:59.6]} 3. Nc3 {[%clk 0:03:00.3]} 3... c5 {[%clk 0:03:00.2]}
4. g3 {[%clk 0:02:55.8]} 4... Be7 {[%clk 0:02:59.8]} 5. Bg2 {[%clk 0:02:54.8]}
5... O-O {[%clk 0:03:00.2]} 6. O-O {[%clk 0:02:55.2]} 6... Nc6 {[%clk
0:03:00.6]} 7. d4 {[%clk 0:02:53]} 7... cxd4 {[%clk 0:03:01]} 8. Nxd4 {[%clk
0:02:53.3]} 8... Ne5 {[%clk 0:03:01.6]} 9. b3 {[%clk 0:02:52.6]} 9... d6 {[%clk
0:03:02.2]} 10. Bb2 {[%clk 0:02:51.9]} 10... a6 {[%clk 0:03:02.7]} 11. Rc1
{[%clk 0:02:50.6]} 11... Qc7 {[%clk 0:03:03.2]} 12. h3 {[%clk 0:02:49.3]} 12...
Re8 {[%clk 0:03:03.7]} 13. Kh1 {[%clk 0:02:47.7]} 13... Rb8 {[%clk 0:03:03.3]}
14. e3 {[%clk 0:02:37.2]} 14... Bf8 {[%clk 0:03:02.9]} 15. Qd2 {[%clk
0:02:28.7]} 15... Nfd7 {[%clk 0:02:55.7]} 16. f4 {[%clk 0:02:19.3]} 16... Ng6
{[%clk 0:02:54.9]} 17. f5 {[%clk 0:02:17.4]} 17... Nge5 {[%clk 0:02:54.1]} 18.
fxe6 {[%clk 0:02:17.1]} 18... fxe6 {[%clk 0:02:54.7]} 19. Qf2 {[%clk 0:01:44.4]}
19... Nc5 {[%clk 0:02:51.9]} 20. Rcd1 {[%clk 0:01:35.3]} 20... Ncd3 {[%clk
0:02:32.7]} 21. Qc2 {[%clk 0:01:26.5]} 21... Nxb2 {[%clk 0:02:29.4]} 22. Qxb2
{[%clk 0:01:27.4]} 22... b6 {[%clk 0:02:29.9]} 23. Nf3 {[%clk 0:01:18.9]} 23...
Ng6 {[%clk 0:02:14.6]} 24. Ng5 {[%clk 0:01:11.3]} 24... Ne5 {[%clk 0:01:58.1]}
25. Qc2 {[%clk 0:01:06.6]} 25... g6 {[%clk 0:01:57.5]} 26. Nce4 {[%clk
0:00:37.9]} 26... Be7 {[%clk 0:01:55]} 27. Nf6+ {[%clk 0:00:37.3]} 27... Bxf6
{[%clk 0:01:55.3]} 28. Rxf6 {[%clk 0:00:37.7]} 28... Qg7 {[%clk 0:01:48.8]} 29.
Rdf1 {[%clk 0:00:36.5]} 29... Bb7 {[%clk 0:01:47.6]} 30. Bxb7 {[%clk 0:00:34.5]}
30... Qxb7+ {[%clk 0:01:47.8]} 31. Qg2 {[%clk 0:00:33.4]} 31... Qd7 {[%clk
0:01:38.2]} 32. Qe4 {[%clk 0:00:32.8]} 32... Rf8 {[%clk 0:01:28.1]} 33. Qf4
{[%clk 0:00:23.9]} 33... Rxf6 {[%clk 0:01:28]} 34. Qxf6 {[%clk 0:00:22.9]} 34...
Re8 {[%clk 0:01:28.5]} 35. Kh2 {[%clk 0:00:21.9]} 35... b5 {[%clk 0:01:07.9]}
36. Qf4 {[%clk 0:00:16.8]} 36... Qe7 {[%clk 0:00:58.5]} 37. Ne4 {[%clk
0:00:16.9]} 37... Kg7 {[%clk 0:00:55.8]} 38. cxb5 {[%clk 0:00:10.4]} 38... axb5
{[%clk 0:00:55.9]} 39. Rd1 {[%clk 0:00:09.9]} 39... Rf8 {[%clk 0:00:51.8]} 0-1

[Event "*** SCC Grand Prix: Titled Tuesday Blitz"]
[Site "Chess.com"]
[Date "2020.09.08"]
[Round "9"]
[White "denispopov"]
[Black "tteshan"]
[Result "1-0"]
[WhiteElo "2005"]
[BlackElo "2394"]
[TimeControl "180+1"]
[EndTime "11:46:29 PDT"]
[Termination "denispopov won by resignation"]

1. e4 {[%clk 0:03:00.9]} 1... d5 {[%clk 0:02:56.9]} 2. exd5 {[%clk 0:03:01.8]}
2... Qxd5 {[%clk 0:02:57.4]} 3. Nc3 {[%clk 0:03:01.9]} 3... Qa5 {[%clk
0:02:57.6]} 4. d4 {[%clk 0:03:02.1]} 4... c6 {[%clk 0:02:57.8]} 5. Be3 {[%clk
0:03:02.3]} 5... Nf6 {[%clk 0:02:57.8]} 6. Nf3 {[%clk 0:03:02.2]} 6... Bg4
{[%clk 0:02:57.9]} 7. Be2 {[%clk 0:03:02.2]} 7... e6 {[%clk 0:02:58.2]} 8. O-O
{[%clk 0:02:58.1]} 8... Nbd7 {[%clk 0:02:58.3]} 9. h3 {[%clk 0:02:58.3]} 9...
Bh5 {[%clk 0:02:58.1]} 10. Bd2 {[%clk 0:02:53.2]} 10... Qc7 {[%clk 0:02:56.5]}
11. Nb1 {[%clk 0:02:47.4]} 11... Bd6 {[%clk 0:02:53.3]} 12. c3 {[%clk
0:02:45.4]} 12... O-O {[%clk 0:02:53.3]} 13. Be3 {[%clk 0:02:45.3]} 13... Rad8
{[%clk 0:02:48.5]} 14. Nbd2 {[%clk 0:02:45.2]} 14... e5 {[%clk 0:02:45.5]} 15.
dxe5 {[%clk 0:02:43.3]} 15... Nxe5 {[%clk 0:02:44.3]} 16. Nxe5 {[%clk
0:02:43.2]} 16... Bxe2 {[%clk 0:02:44.3]} 17. Qxe2 {[%clk 0:02:42.9]} 17... Bxe5
{[%clk 0:02:44.6]} 18. Nf3 {[%clk 0:02:41.8]} 18... Rfe8 {[%clk 0:02:41.9]} 19.
Nxe5 {[%clk 0:02:41.6]} 19... Rxe5 {[%clk 0:02:42]} 20. Qf3 {[%clk 0:02:39.9]}
20... Qe7 {[%clk 0:02:37.8]} 21. Rad1 {[%clk 0:02:37]} 21... Re8 {[%clk
0:02:34.6]} 22. Bf4 {[%clk 0:02:35.6]} 22... Re2 {[%clk 0:02:33.7]} 23. Rd2
{[%clk 0:02:32.2]} 23... Nd5 {[%clk 0:02:28.5]} 24. Rfd1 {[%clk 0:02:24.3]}
24... Re1+ {[%clk 0:01:45.9]} 25. Rxe1 {[%clk 0:02:01.3]} 25... Qxe1+ {[%clk
0:01:46.8]} 26. Kh2 {[%clk 0:02:01.9]} 26... h6 {[%clk 0:01:19.9]} 27. c4 {[%clk
0:01:45.8]} 27... Nf6 {[%clk 0:01:09.8]} 28. Rc2 {[%clk 0:01:38.7]} 28... Qb1
{[%clk 0:00:54.7]} 29. Rd2 {[%clk 0:01:21.9]} 29... Ne4 {[%clk 0:00:30.7]} 30.
Re2 {[%clk 0:01:20.5]} 30... Kh7 {[%clk 0:00:25.9]} 31. Qg4 {[%clk 0:00:59.9]}
31... Nf6 {[%clk 0:00:22.7]} 32. Qf3 {[%clk 0:00:51]} 32... Rxe2 {[%clk
0:00:22.7]} 33. Qxe2 {[%clk 0:00:51.9]} 33... Qxa2 {[%clk 0:00:23.5]} 34. Qc2+
{[%clk 0:00:51.1]} 34... Kh8 {[%clk 0:00:21.7]} 35. Be5 {[%clk 0:00:51.6]} 35...
Nd7 {[%clk 0:00:19.9]} 36. Bc3 {[%clk 0:00:49.2]} 36... Qa6 {[%clk 0:00:19.4]}
37. Qd2 {[%clk 0:00:47.1]} 37... Nf8 {[%clk 0:00:17.2]} 38. Qxh6+ {[%clk
0:00:46]} 1-0

[Event "*** SCC Grand Prix: Titled Tuesday Blitz"]
[Site "Chess.com"]
[Date "2020.09.08"]
[Round "9"]
[White "skoularikii"]
[Black "ShapkinAnatoliy"]
[Result "1-0"]
[WhiteElo "2503"]
[BlackElo "2642"]
[TimeControl "180+1"]
[EndTime "11:46:34 PDT"]
[Termination "skoularikii won on time"]

1. e4 {[%clk 0:03:00.9]} 1... e5 {[%clk 0:02:59.6]} 2. Nf3 {[%clk 0:03:00.4]}
2... Nc6 {[%clk 0:03:00]} 3. Bc4 {[%clk 0:02:53.5]} 3... Bc5 {[%clk 0:02:59.2]}
4. Nc3 {[%clk 0:02:52.3]} 4... Nf6 {[%clk 0:02:59]} 5. d3 {[%clk 0:02:50.8]}
5... d6 {[%clk 0:02:59.3]} 6. Ne2 {[%clk 0:02:47.5]} 6... Be6 {[%clk 0:02:44.8]}
7. Bb3 {[%clk 0:02:41.6]} 7... h6 {[%clk 0:02:35]} 8. Ng3 {[%clk 0:02:39.8]}
8... Qd7 {[%clk 0:02:34.1]} 9. h3 {[%clk 0:02:39.4]} 9... d5 {[%clk 0:02:33.8]}
10. Qe2 {[%clk 0:02:14]} 10... O-O-O {[%clk 0:02:26.2]} 11. O-O {[%clk
0:01:57.7]} 11... Rhe8 {[%clk 0:02:03.9]} 12. Ba4 {[%clk 0:01:51]} 12... dxe4
{[%clk 0:01:57.7]} 13. Nxe5 {[%clk 0:01:47.3]} 13... exd3 {[%clk 0:01:54.1]} 14.
cxd3 {[%clk 0:01:24.6]} 14... Qd6 {[%clk 0:01:40.5]} 15. Nxc6 {[%clk 0:01:20.9]}
15... Bd5 {[%clk 0:01:29.9]} 16. Ne4 {[%clk 0:00:36.3]} 16... Nxe4 {[%clk
0:01:24]} 17. Nxd8 {[%clk 0:00:33.2]} 17... b5 {[%clk 0:00:31.1]} 18. dxe4
{[%clk 0:00:29.9]} 18... c6 {[%clk 0:00:16.7]} 19. Qg4+ {[%clk 0:00:28.3]} 19...
Kxd8 {[%clk 0:00:15.2]} 20. exd5 {[%clk 0:00:28.4]} 20... bxa4 {[%clk
0:00:13.6]} 21. dxc6 {[%clk 0:00:24.8]} 21... Kc7 {[%clk 0:00:06.7]} 22. Bf4
{[%clk 0:00:24.7]} 22... Re5 {[%clk 0:00:05.9]} 23. Qxg7 {[%clk 0:00:22.3]}
23... Bd4 {[%clk 0:00:04.6]} 24. Qxf7+ {[%clk 0:00:21.4]} 24... Kb6 {[%clk
0:00:04.5]} 25. Bxe5 {[%clk 0:00:21.5]} 25... Bxe5 {[%clk 0:00:03.7]} 26. Qb7+
{[%clk 0:00:21.7]} 26... Ka5 {[%clk 0:00:03]} 27. Qxa7+ {[%clk 0:00:21.8]} 27...
Kb5 {[%clk 0:00:02.9]} 28. c7 {[%clk 0:00:21.2]} 1-0

[Event "*** SCC Grand Prix: Titled Tuesday Blitz"]
[Site "Chess.com"]
[Date "2020.09.08"]
[Round "9"]
[White "Goryachkina"]
[Black "GameOverBro"]
[Result "1-0"]
[WhiteElo "2598"]
[BlackElo "2461"]
[TimeControl "180+1"]
[EndTime "11:46:36 PDT"]
[Termination "Goryachkina won by resignation"]

1. e4 {[%clk 0:03:00.9]} 1... d6 {[%clk 0:03:00.1]} 2. d4 {[%clk 0:03:00.1]}
2... Nf6 {[%clk 0:03:00.7]} 3. Nc3 {[%clk 0:03:00.1]} 3... e5 {[%clk 0:03:01.2]}
4. Nf3 {[%clk 0:02:59.5]} 4... Nbd7 {[%clk 0:03:01.6]} 5. Bc4 {[%clk 0:02:58.7]}
5... Be7 {[%clk 0:03:02]} 6. O-O {[%clk 0:02:58.5]} 6... h6 {[%clk 0:03:01.8]}
7. a4 {[%clk 0:02:57.8]} 7... c6 {[%clk 0:03:02.4]} 8. Re1 {[%clk 0:02:57.4]}
8... Qc7 {[%clk 0:03:03]} 9. h3 {[%clk 0:02:50.4]} 9... Nf8 {[%clk 0:03:03]} 10.
b4 {[%clk 0:02:17.2]} 10... Ng6 {[%clk 0:03:00.7]} 11. Bb2 {[%clk 0:02:14.8]}
11... O-O {[%clk 0:02:59]} 12. a5 {[%clk 0:02:08.9]} 12... Bd7 {[%clk
0:02:43.4]} 13. Bb3 {[%clk 0:01:42]} 13... Rad8 {[%clk 0:02:26.5]} 14. Qd2
{[%clk 0:01:24.5]} 14... Nh5 {[%clk 0:02:24.2]} 15. Rad1 {[%clk 0:01:17.7]}
15... Nhf4 {[%clk 0:02:23.4]} 16. Ne2 {[%clk 0:01:14.9]} 16... Bf6 {[%clk
0:02:07.6]} 17. Qe3 {[%clk 0:00:59.5]} 17... b6 {[%clk 0:01:59.2]} 18. Nxf4
{[%clk 0:00:42.7]} 18... Nxf4 {[%clk 0:01:57.3]} 19. axb6 {[%clk 0:00:42.2]}
19... axb6 {[%clk 0:01:57]} 20. Rd2 {[%clk 0:00:38.9]} 20... c5 {[%clk
0:01:47.6]} 21. bxc5 {[%clk 0:00:37.6]} 21... bxc5 {[%clk 0:01:47.1]} 22. dxc5
{[%clk 0:00:36.3]} 22... dxc5 {[%clk 0:01:46.7]} 23. Red1 {[%clk 0:00:31.4]}
23... c4 {[%clk 0:01:45.1]} 24. Bxc4 {[%clk 0:00:29.9]} 24... Qxc4 {[%clk
0:01:44.2]} 25. Rxd7 {[%clk 0:00:30]} 25... Rxd7 {[%clk 0:01:44.2]} 26. Rxd7
{[%clk 0:00:29.7]} 26... Qxc2 {[%clk 0:01:43.2]} 27. Bxe5 {[%clk 0:00:26.2]}
27... Bxe5 {[%clk 0:01:36.9]} 28. Nxe5 {[%clk 0:00:26.1]} 28... g5 {[%clk
0:00:56.8]} 29. Kh2 {[%clk 0:00:20.4]} 29... Qb2 {[%clk 0:00:41.8]} 30. Ng4
{[%clk 0:00:20.2]} 30... Qb8 {[%clk 0:00:32.1]} 31. e5 {[%clk 0:00:19.5]} 31...
h5 {[%clk 0:00:27.1]} 32. Nf6+ {[%clk 0:00:19.8]} 32... Kg7 {[%clk 0:00:25.1]}
33. Nxh5+ {[%clk 0:00:19.7]} 33... Kg6 {[%clk 0:00:13.7]} 34. Nxf4+ {[%clk
0:00:19.9]} 34... gxf4 {[%clk 0:00:14.5]} 35. Qxf4 {[%clk 0:00:20.5]} 35... Qb6
{[%clk 0:00:14.4]} 36. Rd6+ {[%clk 0:00:20.6]} 1-0

[Event "*** SCC Grand Prix: Titled Tuesday Blitz"]
[Site "Chess.com"]
[Date "2020.09.08"]
[Round "9"]
[White "geordie_derraugh"]
[Black "Barcelona_Guy"]
[Result "0-1"]
[WhiteElo "2395"]
[BlackElo "2629"]
[TimeControl "180+1"]
[EndTime "11:46:37 PDT"]
[Termination "Barcelona_Guy won on time"]

1. e4 {[%clk 0:03:00.9]} 1... e6 {[%clk 0:02:59.8]} 2. d4 {[%clk 0:03:01]} 2...
d5 {[%clk 0:03:00.2]} 3. Nd2 {[%clk 0:03:01.8]} 3... c5 {[%clk 0:02:59.4]} 4.
Ngf3 {[%clk 0:03:01.2]} 4... Nf6 {[%clk 0:02:57.8]} 5. exd5 {[%clk 0:02:59.9]}
5... Nxd5 {[%clk 0:02:58.3]} 6. c3 {[%clk 0:02:49.2]} 6... Nc6 {[%clk
0:02:54.9]} 7. Bb5 {[%clk 0:02:45.4]} 7... Bd7 {[%clk 0:02:50.8]} 8. O-O {[%clk
0:02:40.9]} 8... cxd4 {[%clk 0:02:50.2]} 9. Nxd4 {[%clk 0:02:39.1]} 9... Nxd4
{[%clk 0:02:49.5]} 10. Bxd7+ {[%clk 0:02:38.6]} 10... Qxd7 {[%clk 0:02:50.4]}
11. cxd4 {[%clk 0:02:38.4]} 11... Be7 {[%clk 0:02:51.1]} 12. Nf3 {[%clk
0:02:36.6]} 12... O-O {[%clk 0:02:50]} 13. Ne5 {[%clk 0:02:34.5]} 13... Qb5
{[%clk 0:02:46.3]} 14. Qg4 {[%clk 0:02:27.4]} 14... Rfd8 {[%clk 0:02:28.6]} 15.
b3 {[%clk 0:02:18.1]} 15... Rac8 {[%clk 0:02:11.7]} 16. Re1 {[%clk 0:01:37.8]}
16... Rc2 {[%clk 0:01:53.4]} 17. Nxf7 {[%clk 0:01:27.3]} 17... Kxf7 {[%clk
0:01:53.2]} 18. Qxe6+ {[%clk 0:01:27.4]} 18... Ke8 {[%clk 0:01:44.1]} 19. Ba3
{[%clk 0:00:58.6]} 19... Qc6 {[%clk 0:01:24.1]} 20. Qe4 {[%clk 0:00:26.8]} 20...
Qg6 {[%clk 0:00:47]} 21. Qe5 {[%clk 0:00:14]} 21... Qf6 {[%clk 0:00:39.2]} 22.
Qg3 {[%clk 0:00:07.6]} 22... Kf7 {[%clk 0:00:32.9]} 23. Bxe7 {[%clk 0:00:07.2]}
23... Nxe7 {[%clk 0:00:33.8]} 24. Re4 {[%clk 0:00:07.4]} 24... Rxd4 {[%clk
0:00:29.4]} 25. Rxd4 {[%clk 0:00:07.2]} 25... Qxd4 {[%clk 0:00:30.3]} 26. Re1
{[%clk 0:00:07.1]} 26... Qf6 {[%clk 0:00:27.2]} 27. h4 {[%clk 0:00:06.6]} 27...
h5 {[%clk 0:00:23]} 28. Re3 {[%clk 0:00:06.5]} 28... Nf5 {[%clk 0:00:20.4]} 0-1

[Event "*** SCC Grand Prix: Titled Tuesday Blitz"]
[Site "Chess.com"]
[Date "2020.09.08"]
[Round "9"]
[White "parnali1611"]
[Black "Machidon"]
[Result "0-1"]
[WhiteElo "2180"]
[BlackElo "2526"]
[TimeControl "180+1"]
[EndTime "11:46:40 PDT"]
[Termination "Machidon won by resignation"]

1. d4 {[%clk 0:03:00.9]} 1... Nf6 {[%clk 0:02:59.3]} 2. c4 {[%clk 0:03:00.7]}
2... e6 {[%clk 0:02:59.3]} 3. g3 {[%clk 0:03:00]} 3... d5 {[%clk 0:02:58.6]} 4.
Bg2 {[%clk 0:03:00]} 4... Be7 {[%clk 0:02:58]} 5. Nf3 {[%clk 0:02:59.3]} 5...
O-O {[%clk 0:02:58.5]} 6. O-O {[%clk 0:02:59.1]} 6... dxc4 {[%clk 0:02:58.9]} 7.
Qa4 {[%clk 0:02:58.8]} 7... a6 {[%clk 0:02:58.7]} 8. Qxc4 {[%clk 0:02:59.2]}
8... b5 {[%clk 0:02:58.9]} 9. Qc2 {[%clk 0:03:00.1]} 9... Bb7 {[%clk 0:02:59.5]}
10. Bd2 {[%clk 0:03:00.5]} 10... Nbd7 {[%clk 0:02:55.6]} 11. Ba5 {[%clk
0:02:59.7]} 11... Rc8 {[%clk 0:02:52.6]} 12. b4 {[%clk 0:02:59.5]} 12... Nb6
{[%clk 0:02:49.6]} 13. Nbd2 {[%clk 0:02:57.5]} 13... Bd6 {[%clk 0:02:13.5]} 14.
Rfd1 {[%clk 0:02:53]} 14... Qe7 {[%clk 0:02:12.2]} 15. a3 {[%clk 0:02:25.4]}
15... Nbd7 {[%clk 0:02:01.1]} 16. e4 {[%clk 0:02:19.9]} 16... e5 {[%clk
0:02:01]} 17. Re1 {[%clk 0:02:11.4]} 17... Rfe8 {[%clk 0:01:54.9]} 18. Rad1
{[%clk 0:02:05.9]} 18... g6 {[%clk 0:01:32.7]} 19. Qb2 {[%clk 0:01:57.3]} 19...
exd4 {[%clk 0:01:25.8]} 20. Nxd4 {[%clk 0:01:54.7]} 20... c5 {[%clk 0:01:23.2]}
21. bxc5 {[%clk 0:01:50.3]} 21... Nxc5 {[%clk 0:01:23.5]} 22. Re3 {[%clk
0:01:25.1]} 22... Ng4 {[%clk 0:01:16.4]} 23. Re2 {[%clk 0:01:00.4]} 23... Na4
{[%clk 0:01:05.4]} 24. Qa1 {[%clk 0:00:58]} 24... Bxa3 {[%clk 0:01:03.2]} 25.
Bh3 {[%clk 0:00:57.7]} 25... Bb2 {[%clk 0:01:00.9]} 26. Qa2 {[%clk 0:00:53.8]}
26... h5 {[%clk 0:00:49.5]} 27. Bxg4 {[%clk 0:00:52.6]} 27... hxg4 {[%clk
0:00:50.4]} 28. N2b3 {[%clk 0:00:49.1]} 28... Bc3 {[%clk 0:00:46.5]} 29. Re3
{[%clk 0:00:44]} 29... Bxa5 {[%clk 0:00:44]} 30. Nxa5 {[%clk 0:00:43.7]} 30...
Nc3 {[%clk 0:00:43.7]} 31. Rxc3 {[%clk 0:00:41.1]} 31... Rxc3 {[%clk 0:00:44.6]}
32. Qb2 {[%clk 0:00:39.4]} 32... Rc7 {[%clk 0:00:36.6]} 33. Nxb7 {[%clk
0:00:38.1]} 33... Rxb7 {[%clk 0:00:36.4]} 34. Nc6 {[%clk 0:00:38.4]} 34... Qxe4
{[%clk 0:00:35.8]} 35. Qf6 {[%clk 0:00:34.5]} 35... Qf3 {[%clk 0:00:31.4]} 36.
Qd6 {[%clk 0:00:30.7]} 36... Re6 {[%clk 0:00:27.4]} 37. Qd8+ {[%clk 0:00:26.9]}
37... Kh7 {[%clk 0:00:27.8]} 38. Qh4+ {[%clk 0:00:26.5]} 38... Kg7 {[%clk
0:00:27.3]} 39. Nd8 {[%clk 0:00:24.9]} 39... Qxd1+ {[%clk 0:00:26.8]} 0-1

[Event "*** SCC Grand Prix: Titled Tuesday Blitz"]
[Site "Chess.com"]
[Date "2020.09.08"]
[Round "9"]
[White "HrvojeZagreb"]
[Black "fabianvivasz"]
[Result "0-1"]
[WhiteElo "2168"]
[BlackElo "2312"]
[TimeControl "180+1"]
[EndTime "11:46:43 PDT"]
[Termination "fabianvivasz won by checkmate"]

1. d4 {[%clk 0:03:00.9]} 1... Nf6 {[%clk 0:02:59.2]} 2. Bf4 {[%clk 0:02:53.8]}
2... g6 {[%clk 0:02:55.8]} 3. Nc3 {[%clk 0:02:53.1]} 3... d5 {[%clk 0:02:54.8]}
4. e3 {[%clk 0:02:53]} 4... a6 {[%clk 0:02:46.5]} 5. h4 {[%clk 0:02:49.5]} 5...
c5 {[%clk 0:02:41.2]} 6. Nf3 {[%clk 0:02:40.2]} 6... Nc6 {[%clk 0:02:38.7]} 7.
Ne5 {[%clk 0:02:35.9]} 7... cxd4 {[%clk 0:02:15.5]} 8. exd4 {[%clk 0:02:34.3]}
8... Qb6 {[%clk 0:02:14.8]} 9. Nxc6 {[%clk 0:02:25.8]} 9... Qxb2 {[%clk
0:02:02.1]} 10. Na4 {[%clk 0:01:31.3]} 10... Qa3 {[%clk 0:01:57.3]} 11. c3
{[%clk 0:01:09.4]} 11... bxc6 {[%clk 0:01:46.9]} 12. Bd3 {[%clk 0:01:03.2]}
12... Bg4 {[%clk 0:00:56.1]} 13. f3 {[%clk 0:01:01.9]} 13... Bf5 {[%clk
0:00:53.1]} 14. Bxf5 {[%clk 0:00:56.2]} 14... gxf5 {[%clk 0:00:54]} 15. O-O
{[%clk 0:00:38.5]} 15... Rg8 {[%clk 0:00:40.4]} 16. Qc2 {[%clk 0:00:35.7]} 16...
e6 {[%clk 0:00:37.8]} 17. Rab1 {[%clk 0:00:30.4]} 17... Nh5 {[%clk 0:00:37.2]}
18. Bh2 {[%clk 0:00:08.1]} 18... Qe7 {[%clk 0:00:36.8]} 19. Qf2 {[%clk
0:00:07.6]} 19... f4 {[%clk 0:00:33.7]} 20. Nc5 {[%clk 0:00:06.7]} 20... Ng3
{[%clk 0:00:32.2]} 21. Rb7 {[%clk 0:00:06.5]} 21... Qxh4 {[%clk 0:00:31.9]} 22.
Rfb1 {[%clk 0:00:06.6]} 22... Bd6 {[%clk 0:00:28.5]} 23. Rd7 {[%clk 0:00:05.9]}
23... Bxc5 {[%clk 0:00:28.1]} 24. Rbb7 {[%clk 0:00:06]} 24... Ba3 {[%clk
0:00:25.5]} 25. Rxf7 {[%clk 0:00:05.8]} 25... Rg6 {[%clk 0:00:14.8]} 26. Qe1
{[%clk 0:00:05.4]} 26... Rh6 {[%clk 0:00:11.8]} 27. Bxg3 {[%clk 0:00:03.7]}
27... fxg3 {[%clk 0:00:12.2]} 28. Qxe6+ {[%clk 0:00:02.6]} 28... Rxe6 {[%clk
0:00:11.8]} 29. Rxh7 {[%clk 0:00:03.5]} 29... Re1# {[%clk 0:00:11.5]} 0-1

[Event "*** SCC Grand Prix: Titled Tuesday Blitz"]
[Site "Chess.com"]
[Date "2020.09.08"]
[Round "9"]
[White "WPWPWP-2015"]
[Black "Yoshikrov"]
[Result "1-0"]
[WhiteElo "2415"]
[BlackElo "2106"]
[TimeControl "180+1"]
[EndTime "11:46:43 PDT"]
[Termination "WPWPWP-2015 won by resignation"]

1. e4 {[%clk 0:03:00.9]} 1... c5 {[%clk 0:02:59.7]} 2. Nc3 {[%clk 0:02:59.8]}
2... d6 {[%clk 0:02:59.3]} 3. d4 {[%clk 0:02:58.5]} 3... cxd4 {[%clk 0:02:59.2]}
4. Qxd4 {[%clk 0:02:58.9]} 4... Nc6 {[%clk 0:02:58.7]} 5. Qd2 {[%clk 0:02:59.5]}
5... Nf6 {[%clk 0:02:58.7]} 6. b3 {[%clk 0:02:58.9]} 6... e6 {[%clk 0:02:51.9]}
7. Bb2 {[%clk 0:02:58]} 7... Be7 {[%clk 0:02:52.2]} 8. O-O-O {[%clk 0:02:56.3]}
8... a6 {[%clk 0:02:49.4]} 9. f3 {[%clk 0:02:56.3]} 9... Qc7 {[%clk 0:02:49.6]}
10. g4 {[%clk 0:02:55.6]} 10... h6 {[%clk 0:02:49.1]} 11. h4 {[%clk 0:02:53.2]}
11... b5 {[%clk 0:02:37.5]} 12. Bh3 {[%clk 0:02:52.6]} 12... Bd7 {[%clk
0:02:14.8]} 13. Nge2 {[%clk 0:02:37.5]} 13... Rc8 {[%clk 0:02:06.3]} 14. g5
{[%clk 0:02:36.6]} 14... Nh5 {[%clk 0:02:03.7]} 15. g6 {[%clk 0:02:34.3]} 15...
f6 {[%clk 0:01:59.4]} 16. f4 {[%clk 0:02:20.9]} 16... b4 {[%clk 0:01:51.9]} 17.
Na4 {[%clk 0:02:20.4]} 17... e5 {[%clk 0:01:47.2]} 18. Bxd7+ {[%clk 0:02:16.5]}
18... Kxd7 {[%clk 0:01:43.9]} 19. f5 {[%clk 0:02:14.4]} 19... Nf4 {[%clk
0:01:19.9]} 20. Nxf4 {[%clk 0:02:12.7]} 20... exf4 {[%clk 0:01:20.3]} 21. Nc5+
{[%clk 0:02:12.8]} 21... Ke8 {[%clk 0:01:18.7]} 22. Ne6 {[%clk 0:02:12.9]} 22...
Qa5 {[%clk 0:01:15.2]} 23. Nxg7+ {[%clk 0:02:10.3]} 23... Kf8 {[%clk 0:01:15.1]}
24. Ne6+ {[%clk 0:02:10.4]} 24... Ke8 {[%clk 0:01:15.7]} 25. Kb1 {[%clk
0:02:06.8]} 25... Ne5 {[%clk 0:01:09.8]} 26. Qxf4 {[%clk 0:02:04]} 26... Qb5
{[%clk 0:01:04.2]} 27. Rh2 {[%clk 0:01:56.5]} 27... a5 {[%clk 0:01:04.2]} 28.
Qf1 {[%clk 0:01:52.6]} 28... Qc6 {[%clk 0:01:00.5]} 29. Nd4 {[%clk 0:01:50.4]}
29... Qc5 {[%clk 0:01:00.5]} 30. Qb5+ {[%clk 0:01:49.2]} 30... Qxb5 {[%clk
0:01:00.5]} 31. Nxb5 {[%clk 0:01:50.1]} 31... Ng4 {[%clk 0:00:55.3]} 32. Rd3
{[%clk 0:01:42.2]} 32... Nxh2 {[%clk 0:00:54]} 33. Nxd6+ {[%clk 0:01:22.8]}
33... Bxd6 {[%clk 0:00:50.7]} 34. Rxd6 {[%clk 0:01:19.3]} 34... Ng4 {[%clk
0:00:49.7]} 35. Bxf6 {[%clk 0:00:52.9]} 35... Nxf6 {[%clk 0:00:49.4]} 36. Rxf6
{[%clk 0:00:53.5]} 36... h5 {[%clk 0:00:47.5]} 37. a4 {[%clk 0:00:39.9]} 37...
Rf8 {[%clk 0:00:46.2]} 38. Ra6 {[%clk 0:00:35.6]} 38... Rc5 {[%clk 0:00:41.1]}
39. f6 {[%clk 0:00:15.8]} 39... Re5 {[%clk 0:00:33.5]} 40. Ra8+ {[%clk
0:00:15.1]} 40... Kd7 {[%clk 0:00:33.4]} 41. Rxf8 {[%clk 0:00:15.1]} 41... Rxe4
{[%clk 0:00:33.4]} 42. g7 {[%clk 0:00:15.4]} 1-0